fUST/lending_fUST_20240912
["ID","MTS","AMOUNT","RATE_DAILY","PERIOD"]
[337792210,1726121461575,-515.43,0.00016986,2]
[337792211,1726121461585,-500.0,0.00016986,2]
[337792212,1726121461596,-1100.85,0.00016986,2]
[337792213,1726121461607,-501.99696095,0.00016986,2]
[337792214,1726121461618,-500.0,0.00016986,2]
[337792215,1726121461629,-500.0,0.00016986,2]
[337792216,1726121461640,-151.0,0.00016986,2]
[337792217,1726121461651,-500.0,0.00016986,2]
[337792218,1726121461663,-791.35,0.00016986,2]
[337792219,1726121461673,-500.0,0.00016986,2]
[337792220,1726121461684,-500.0,0.00016986,2]
[337792221,1726121461695,-500.0,0.00016986,2]
[337792222,1726121461706,-151.0,0.00016986,2]
[337792223,1726121461717,-500.0,0.00016986,2]
[337792224,1726121461728,-500.0,0.00016986,2]
[337792225,1726121461739,-500.0,0.00016986,2]
[337792226,1726121461749,-1107.99,0.00016986,2]
[337792227,1726121461760,-557.23,0.00016986,2]
[337792228,1726121461770,-572.4,0.00016986,2]
[337792229,1726121461779,-505.64,0.00016986,2]
[337792230,1726121461790,-500.0,0.00016986,2]
[337792231,1726121461799,-500.0,0.00016986,2]
[337792232,1726121461808,-690.06,0.00016986,2]
[337792233,1726121461819,-713.71,0.00016986,2]
[337792234,1726121461828,-12389.07,0.00016986,2]
[337792235,1726121461837,-472.48,0.00016986,2]
[337792236,1726121461847,-506.18341326,0.00016986,2]
[337792237,1726121461860,-500.0,0.00016986,2]
[337792238,1726121461870,-151.0,0.00016986,2]
[337792239,1726121461878,-200.0,0.00016986,2]
[337792240,1726121461886,-621.295171,0.00016986,2]
[337792241,1726121461895,-500.0,0.00016986,2]
[337792242,1726121461903,-621.295171,0.00016986,2]
[337792243,1726121461912,-737.47,0.00016986,2]
[337792244,1726121461921,-1001.22,0.00016986,2]
[337792245,1726121461932,-500.0,0.00016986,2]
[337792246,1726121461941,-897.4,0.00016986,2]
[337792247,1726121461951,-500.0,0.00016986,2]
[337792248,1726121461961,-500.0,0.00016986,2]
[337792249,1726121461970,-964.2,0.00016986,2]
[337792250,1726121461980,-500.0,0.00016986,2]
[337792251,1726121461989,-1423.16,0.00016986,2]
[337792252,1726121461999,-500.0,0.00016986,2]
[337792253,1726121462009,-151.0,0.00016986,2]
[337792254,1726121462019,-151.0,0.00016986,2]
[337792255,1726121462029,-500.0,0.00016986,2]
[337792256,1726121462039,-500.0,0.00016986,2]
[337792257,1726121462049,-1611.83,0.00016986,2]
[337792258,1726121462059,-500.0,0.00016986,2]
[337792259,1726121462070,-1050.46,0.00016986,2]
[337792260,1726121462079,-500.0,0.00016986,2]
[337792261,1726121462090,-555.22,0.00016986,2]
[337792262,1726121462100,-1074.66,0.00016986,2]
[337792263,1726121462110,-1273.64,0.00016986,2]
[337792264,1726121462119,-500.0,0.00016986,2]
[337792265,1726121462129,-500.0,0.00016986,2]
[337792266,1726121462138,-500.0,0.00016986,2]
[337792267,1726121462149,-2346.75,0.00016986,2]
[337792268,1726121462159,-500.0,0.00016986,2]
[337792269,1726121462170,-1169.55,0.00016986,2]
[337792270,1726121462180,-151.0,0.00016986,2]
[337792271,1726121462189,-500.0,0.00016986,2]
[337792272,1726121462199,-15953.01,0.00016986,2]
[337792273,1726121462208,-690.09,0.00016986,2]
[337792274,1726121462218,-151.0,0.00016986,2]
[337792275,1726121462228,-239.98904952,0.00016986,2]
[337792276,1726121462239,-1514.14,0.00016986,2]
[337792277,1726121462249,-500.37,0.00016986,2]
[337792278,1726121462259,-500.0,0.00016986,2]
[337792279,1726121462269,-670.84,0.00016986,2]
[337792280,1726121462279,-500.0,0.00016986,2]
[337792281,1726121462288,-736.21,0.00016986,2]
[337792282,1726121462298,-500.0,0.00016986,2]
[337792283,1726121462308,-1043.33,0.00016986,2]
[337792284,1726121462317,-500.0,0.00016986,2]
[337792285,1726121462329,-500.0,0.00016986,2]
[337792286,1726121462344,-582.5,0.00016986,2]
[337792287,1726121462354,-500.0,0.00016986,2]
[337792288,1726121462363,-500.0,0.00016986,2]
[337792289,1726121462372,-500.0,0.00016986,2]
[337792290,1726121462382,-1066.92,0.00016986,2]
[337792291,1726121462391,-500.0,0.00016986,2]
[337792292,1726121462401,-1278.69,0.00016986,2]
[337792293,1726121462410,-500.0,0.00016986,2]
[337792294,1726121462421,-500.0,0.00016986,2]
[337792295,1726121462430,-500.0,0.00016986,2]
[337792296,1726121462440,-1332.55,0.00016986,2]
[337792297,1726121462450,-500.0,0.00016986,2]
[337792298,1726121462459,-455.40578428,0.00016986,2]
[337792299,1726121462470,-500.0,0.00016986,2]
[337792300,1726121462480,-500.0,0.00016986,2]
[337792301,1726121462489,-740.32,0.00016986,2]
[337792302,1726121462499,-500.0,0.00016986,2]
[337792303,1726121462509,-500.0,0.00016986,2]
[337792304,1726121462518,-500.0,0.00016986,2]
[337792305,1726121462649,-500.0,0.00016986,2]
[337792306,1726121462682,-886.39,0.00016986,2]
[337792307,1726121462692,-810.42,0.00016986,2]
[337792308,1726121462702,-770.47,0.00016986,2]
[337792309,1726121462711,-500.0,0.00016986,2]
[337792310,1726121462720,-7292.49,0.00016986,2]
[337792311,1726121462730,-500.0,0.00016986,2]
[337792312,1726121462739,-500.0,0.00016986,2]
[337792313,1726121462748,-1039.3,0.00016986,2]
[337792314,1726121462758,-4148.57,0.00016986,2]
[337792315,1726121462768,-500.0,0.00016986,2]
[337792316,1726121462777,-500.0,0.00016986,2]
[337792317,1726121462786,-11633.83,0.00016986,2]
[337792318,1726121462796,-1457.46,0.00016986,2]
[337792319,1726121462806,-500.0,0.00016986,2]
[337792320,1726121462815,-504.10185442,0.00016986,2]
[337792321,1726121462825,-500.0,0.00016986,2]
[337792322,1726121462834,-543.46905988,0.00016986,2]
[337792323,1726121462844,-955.55,0.00016986,2]
[337792324,1726121462854,-500.0,0.00016986,2]
[337792325,1726121462866,-1205.78,0.00016986,2]
[337792326,1726121462876,-500.0,0.00016986,2]
[337792327,1726121462885,-500.0,0.00016986,2]
[337792328,1726121462894,-500.0,0.00016986,2]
[337792329,1726121462905,-697.1,0.00016986,2]
[337792330,1726121462914,-649.86,0.00016986,2]
[337792331,1726121462923,-500.0,0.00016986,2]
[337792332,1726121462934,-1365.01,0.00016986,2]
[337792333,1726121462943,-500.0,0.00016986,2]
[337792334,1726121462953,-1265.69,0.00016986,2]
[337792335,1726121462962,-573.19682479,0.00016986,2]
[337792336,1726121462972,-500.0,0.00016986,2]
[337792337,1726121462981,-512.51785565,0.00016986,2]
[337792338,1726121462990,-509.17810216,0.00016986,2]
[337792339,1726121463000,-500.0,0.00016986,2]
[337792340,1726121463010,-516.87,0.00016986,2]
[337792341,1726121463020,-500.0,0.00016986,2]
[337792342,1726121463031,-500.0,0.00016986,2]
[337792343,1726121463040,-500.0,0.00016986,2]
[337792344,1726121463050,-538.76,0.00016986,2]
[337792345,1726121463059,-500.0,0.00016986,2]
[337792346,1726121463070,-502.21263299,0.00016986,2]
[337792347,1726121463080,-500.0,0.00016986,2]
[337792348,1726121463091,-500.0,0.00016986,2]
[337792349,1726121463101,-500.0,0.00016986,2]
[337792350,1726121463111,-512.44286753,0.00016986,2]
[337792351,1726121463122,-535.19,0.00016986,2]
[337792352,1726121463132,-1450.65,0.00016986,2]
[337792353,1726121463141,-1590.58,0.00016986,2]
[337792354,1726121463151,-500.0,0.00016986,2]
[337792355,1726121463162,-504.27,0.00016986,2]
[337792356,1726121463173,-500.0,0.00016986,2]
[337792357,1726121463184,-500.0,0.00016986,2]
[337792358,1726121463194,-500.0,0.00016986,2]
[337792359,1726121463204,-151.0,0.0001725,2]
[337792360,1726121463215,-151.0,0.0001725,2]
[337792361,1726121463225,-19236.1628375,0.0001725,2]
[337792362,1726121463235,-606.49,0.0001726,2]
[337792363,1726121463245,-500.0,0.0001726,2]
[337792364,1726121463255,-500.0,0.0001726,2]
[337792365,1726121463265,-500.0,0.0001726,2]
[337792366,1726121463275,-151.0,0.0001726,2]
[337792367,1726121463284,-795.02,0.0001726,2]
[337792368,1726121463294,-500.0,0.0001726,2]
[337792369,1726121463304,-614.16,0.0001726,2]
[337792370,1726121463314,-808.63,0.0001726,2]
[337792371,1726121463326,-500.0,0.0001726,2]
[337792372,1726121463336,-500.0,0.0001726,2]
[337792373,1726121463346,-151.0,0.0001726,2]
[337792374,1726121463356,-1908.5,0.0001726,2]
[337792375,1726121463365,-500.0,0.0001726,2]
[337792376,1726121463376,-500.0,0.0001726,2]
[337792377,1726121463385,-500.0,0.0001726,2]
[337792378,1726121463395,-500.0,0.0001726,2]
[337792379,1726121463404,-500.0,0.0001726,2]
[337792380,1726121463413,-505.71865067,0.0001726,2]
[337792381,1726121463423,-500.0,0.0001726,2]
[337792382,1726121463432,-503.16045198,0.0001726,2]
[337792383,1726121463443,-500.0,0.0001726,2]
[337792384,1726121463453,-552.23,0.0001726,2]
[337792385,1726121463462,-500.0,0.0001726,2]
[337792386,1726121463472,-2120.97,0.0001726,2]
[337792387,1726121463482,-498.72019032,0.0001726,2]
[337792388,1726121463492,-1044.98,0.0001726,2]
[337792389,1726121463501,-542.7294714,0.0001726,2]
[337792390,1726121463510,-500.0,0.0001726,2]
[337792391,1726121463520,-725.95,0.0001726,2]
[337792392,1726121463530,-151.0,0.0001726,2]
[337792393,1726121463540,-167.498445,0.0001726,2]
[337792394,1726121463550,-500.0,0.0001726,2]
[337792395,1726121463560,-500.0,0.0001726,2]
[337792396,1726121463570,-151.0,0.0001726,2]
[337792397,1726121463581,-151.0,0.0001726,2]
[337792398,1726121463592,-500.0,0.0001726,2]
[337792399,1726121463601,-500.0,0.0001726,2]
[337792400,1726121463611,-500.0,0.0001726,2]
[337792401,1726121463620,-500.0,0.0001726,2]
[337792402,1726121463629,-500.0,0.0001726,2]
[337792403,1726121463639,-1005.36,0.0001726,2]
[337792404,1726121463649,-156.25321,0.0001726,2]
[337792405,1726121463658,-500.0,0.0001726,2]
[337792406,1726121463668,-1298.29,0.0001726,2]
[337792407,1726121463678,-156.25321,0.0001726,2]
[337792408,1726121463688,-500.0,0.0001726,2]
[337792409,1726121463698,-500.0,0.0001726,2]
[337792410,1726121463707,-500.0,0.0001726,2]
[337792411,1726121463717,-500.0,0.0001726,2]
[337792412,1726121463728,-594.98,0.0001726,2]
[337792413,1726121463738,-530.78688952,0.0001726,2]
[337792414,1726121463748,-500.0,0.0001726,2]
[337792415,1726121463757,-524.27,0.0001726,2]
[337792416,1726121463767,-500.0,0.0001726,2]
[337792417,1726121463777,-500.0,0.0001726,2]
[337792418,1726121463787,-500.0,0.0001726,2]
[337792419,1726121463798,-702.73,0.0001726,2]
[337792420,1726121463808,-500.0,0.0001726,2]
[337792421,1726121463818,-556.93,0.0001726,2]
[337792422,1726121463831,-500.0,0.0001726,2]
[337792423,1726121463841,-503.32982892,0.0001726,2]
[337792424,1726121463852,-500.0,0.0001726,2]
[337792425,1726121463872,-1208.12,0.0001726,2]
[337792426,1726121463885,-500.0,0.0001726,2]
[337792427,1726121463894,-500.0,0.0001726,2]
[337792428,1726121463904,-517.99,0.0001726,2]
[337792429,1726121463914,-500.0,0.0001726,2]
[337792430,1726121463924,-500.0,0.0001726,2]
[337792431,1726121463934,-500.0,0.0001726,2]
[337792432,1726121463945,-1666.86,0.0001726,2]
[337792433,1726121463957,-763.48,0.0001726,2]
[337792434,1726121463975,-1073.64,0.0001726,2]
[337792435,1726121463994,-618.35,0.0001726,2]
[337792436,1726121464006,-500.0,0.0001726,2]
[337792437,1726121464016,-643.74,0.0001726,2]
[337792438,1726121464025,-151.0,0.0001726,2]
[337792439,1726121464035,-1264.64,0.0001726,2]
[337792440,1726121464045,-500.0,0.0001726,2]
[337792441,1726121464056,-500.0,0.0001726,2]
[337792442,1726121464066,-500.0,0.0001726,2]
[337792443,1726121464078,-500.0,0.0001726,2]
[337792444,1726121464088,-151.0,0.0001726,2]
[337792445,1726121464098,-921.92,0.0001726,2]
[337792446,1726121464108,-500.0,0.0001726,2]
[337792447,1726121464118,-500.0,0.0001726,2]
[337792448,1726121464128,-500.0,0.0001726,2]
[337792449,1726121464138,-1429.74,0.0001726,2]
[337792450,1726121464148,-500.0,0.0001726,2]
[337792451,1726121464158,-1762.4,0.0001726,2]
[337792452,1726121464167,-1113.12,0.0001726,2]
[337792453,1726121464177,-500.0,0.0001726,2]
[337792454,1726121464187,-500.0,0.0001726,2]
[337792455,1726121464197,-500.0,0.0001726,2]
[337792456,1726121464207,-794.517859,0.0001726,2]
[337792457,1726121464218,-500.0,0.0001726,2]
[337792458,1726121464228,-500.0,0.0001726,2]
[337792459,1726121464238,-794.517859,0.0001726,2]
[337792460,1726121464249,-500.0,0.0001726,2]
[337792461,1726121464260,-2451.39,0.0001726,2]
[337792462,1726121464270,-706.19,0.0001726,2]
[337792463,1726121464279,-500.0,0.0001726,2]
[337792464,1726121464289,-1932.79,0.0001726,2]
[337792465,1726121464299,-1821.32,0.0001726,2]
[337792466,1726121464310,-500.0,0.0001726,2]
[337792467,1726121464319,-500.0,0.0001726,2]
[337792468,1726121464332,-500.0,0.0001726,2]
[337792469,1726121464343,-500.0,0.0001726,2]
[337792470,1726121464353,-500.0,0.0001726,2]
[337792471,1726121464364,-500.0,0.0001726,2]
[337792472,1726121464375,-500.0,0.0001726,2]
[337792473,1726121464385,-237.06948409,0.0001726,2]
[337792474,1726121464396,-500.0,0.0001726,2]
[337792475,1726121464406,-523.393542,0.0001726,2]
[337792476,1726121464417,-1955.09,0.0001726,2]
[337792477,1726121464426,-601.79,0.0001726,2]
[337792478,1726121464436,-500.0,0.0001726,2]
[337792479,1726121464446,-523.393542,0.0001726,2]
[337792480,1726121464457,-508.53845474,0.0001726,2]
[337792481,1726121464467,-500.0,0.0001726,2]
[337792482,1726121464476,-873.72,0.0001726,2]
[337792483,1726121464486,-500.0,0.0001726,2]
[337792484,1726121464495,-507.63238794,0.0001726,2]
[337792485,1726121464506,-924.92,0.0001726,2]
[337792486,1726121464516,-500.22,0.0001726,2]
[337792487,1726121464527,-500.0,0.0001726,2]
[337792488,1726121464540,-500.0,0.0001726,2]
[337792489,1726121464550,-500.0,0.0001726,2]
[337792490,1726121464561,-581.29,0.0001726,2]
[337792491,1726121464570,-824.65,0.0001726,2]
[337792492,1726121464581,-500.0,0.0001726,2]
[337792493,1726121464590,-222.400699,0.0001726,2]
[337792494,1726121464600,-1398.07,0.0001726,2]
[337792495,1726121464609,-500.0,0.0001726,2]
[337792496,1726121464619,-500.0,0.0001726,2]
[337792497,1726121464630,-222.400699,0.0001726,2]
[337792498,1726121464639,-1082.88,0.0001726,2]
[337792499,1726121464649,-500.0,0.0001726,2]
[337792500,1726121464659,-151.0,0.0001726,2]
[337792501,1726121464669,-500.0,0.0001726,2]
[337792502,1726121464679,-500.0,0.0001726,2]
[337792503,1726121464689,-500.0,0.0001726,2]
[337792504,1726121464699,-589.91,0.0001726,2]
[337792505,1726121464711,-543.26,0.0001726,2]
[337792506,1726121464720,-682.96,0.0001726,2]
[337792507,1726121464729,-822.97,0.0001726,2]
[337792508,1726121464739,-151.0,0.0001726,2]
[337792509,1726121464748,-500.0,0.0001726,2]
[337792510,1726121464758,-500.0,0.0001726,2]
[337792511,1726121464767,-500.0,0.0001726,2]
[337792512,1726121464776,-1315.99,0.0001726,2]
[337792513,1726121464787,-857.5,0.0001726,2]
[337792514,1726121464798,-500.0,0.0001726,2]
[337792515,1726121464807,-500.0,0.0001726,2]
[337792516,1726121464818,-1015.36,0.0001726,2]
[337792517,1726121464830,-500.0,0.0001726,2]
[337792518,1726121464840,-500.0,0.0001726,2]
[337792519,1726121464849,-1887.42,0.0001726,2]
[337792520,1726121464859,-500.0,0.0001726,2]
[337792521,1726121464872,-515.43,0.0001726,2]
[337792522,1726121464882,-500.0,0.0001726,2]
[337792523,1726121464892,-1100.85,0.0001726,2]
[337792524,1726121464902,-500.0,0.0001726,2]
[337792525,1726121464912,-500.0,0.0001726,2]
[337792526,1726121464922,-791.35,0.0001726,2]
[337792527,1726121464932,-500.0,0.0001726,2]
[337792528,1726121464942,-500.0,0.0001726,2]
[337792529,1726121464953,-500.0,0.0001726,2]
[337792530,1726121464964,-500.0,0.0001726,2]
[337792531,1726121464974,-500.0,0.0001726,2]
[337792532,1726121464984,-318.63996366,0.0001726,2]
[337792533,1726121464993,-500.0,0.0001726,2]
[337792534,1726121465003,-1107.99,0.0001726,2]
[337792535,1726121465012,-557.23,0.0001726,2]
[337792536,1726121465021,-572.4,0.0001726,2]
[337792537,1726121465031,-505.64,0.0001726,2]
[337792538,1726121465041,-500.0,0.0001726,2]
[337792539,1726121465051,-500.0,0.0001726,2]
[337792540,1726121465060,-690.06,0.0001726,2]
[337792541,1726121465070,-713.71,0.0001726,2]
[337792542,1726121465081,-12389.07,0.0001726,2]
[337792543,1726121465091,-503.87743974,0.0001726,2]
[337792544,1726121465101,-200.0,0.0001726,2]
[337792545,1726121465110,-500.0,0.0001726,2]
[337792546,1726121465120,-737.47,0.0001726,2]
[337792547,1726121465131,-1001.22,0.0001726,2]
[337792548,1726121465140,-500.0,0.0001726,2]
[337792549,1726121465150,-897.4,0.0001726,2]
[337792550,1726121465160,-500.0,0.0001726,2]
[337792551,1726121465170,-500.0,0.0001726,2]
[337792552,1726121465215,-964.2,0.0001726,2]
[337792553,1726121465225,-500.0,0.0001726,2]
[337792554,1726121465234,-1423.16,0.0001726,2]
[337792555,1726121465244,-500.0,0.0001726,2]
[337792556,1726121465253,-500.0,0.0001726,2]
[337792557,1726121465264,-500.0,0.0001726,2]
[337792558,1726121465274,-1611.83,0.0001726,2]
[337792559,1726121465284,-1050.46,0.0001726,2]
[337792560,1726121465294,-500.0,0.0001726,2]
[337792561,1726121465303,-555.22,0.0001726,2]
[337792562,1726121465313,-500.0,0.0001726,2]
[337792563,1726121465323,-1074.66,0.0001726,2]
[337792564,1726121465333,-1273.64,0.0001726,2]
[337792565,1726121465342,-500.0,0.0001726,2]
[337792566,1726121465352,-500.0,0.0001726,2]
[337792567,1726121465362,-500.0,0.0001726,2]
[337792568,1726121465371,-2346.75,0.0001726,2]
[337792569,1726121465380,-500.0,0.0001726,2]
[337792570,1726121465391,-1169.55,0.0001726,2]
[337792571,1726121465403,-500.0,0.0001726,2]
[337792572,1726121465414,-15953.01,0.0001726,2]
[337792573,1726121465423,-690.09,0.0001726,2]
[337792574,1726121465433,-1514.14,0.0001726,2]
[337792575,1726121465442,-500.37,0.0001726,2]
[337792576,1726121465455,-500.0,0.0001726,2]
[337792577,1726121465464,-670.84,0.0001726,2]
[337792578,1726121465474,-502.60302544,0.0001726,2]
[337792579,1726121465484,-736.21,0.0001726,2]
[337792580,1726121465495,-555.48366734,0.0001726,2]
[337792581,1726121465504,-1043.33,0.0001726,2]
[337792582,1726121465514,-500.0,0.0001726,2]
[337792583,1726121465523,-500.0,0.0001726,2]
[337792584,1726121465532,-582.5,0.0001726,2]
[337792585,1726121465542,-500.0,0.0001726,2]
[337792586,1726121465551,-500.0,0.0001726,2]
[337792587,1726121465562,-1066.92,0.0001726,2]
[337792588,1726121465571,-500.0,0.0001726,2]
[337792589,1726121465583,-1278.69,0.0001726,2]
[337792590,1726121465594,-500.0,0.0001726,2]
[337792591,1726121465604,-500.0,0.0001726,2]
[337792592,1726121465615,-500.0,0.0001726,2]
[337792593,1726121465626,-1332.55,0.0001726,2]
[337792594,1726121465635,-433.44,0.0001726,2]
[337792595,1726121465644,-500.0,0.0001726,2]
[337792596,1726121465654,-187.1,0.0001726,2]
[337792597,1726121465663,-740.32,0.0001726,2]
[337792598,1726121465673,-154.363797,0.0001726,2]
[337792599,1726121465682,-500.0,0.0001726,2]
[337792600,1726121465692,-505.42851938,0.0001726,2]
[337792601,1726121465702,-886.39,0.0001726,2]
[337792602,1726121465712,-810.42,0.0001726,2]
[337792603,1726121465721,-770.47,0.0001726,2]
[337792604,1726121465731,-151.0,0.0001726,2]
[337792605,1726121465740,-500.0,0.0001726,2]
[337792606,1726121465751,-7292.49,0.0001726,2]
[337792607,1726121465762,-151.0,0.0001726,2]
[337792608,1726121465771,-500.0,0.0001726,2]
[337792609,1726121465781,-500.0,0.0001726,2]
[337792610,1726121465790,-1039.3,0.0001726,2]
[337792611,1726121465800,-4148.57,0.0001726,2]
[337792612,1726121465809,-500.0,0.0001726,2]
[337792613,1726121465819,-151.0,0.0001726,2]
[337792614,1726121465835,-500.0,0.0001726,2]
[337792615,1726121465844,-11633.83,0.0001726,2]
[337792616,1726121465853,-1457.46,0.0001726,2]
[337792617,1726121465863,-500.0,0.0001726,2]
[337792618,1726121465874,-151.0,0.0001726,2]
[337792619,1726121465884,-500.0,0.0001726,2]
[337792620,1726121465893,-151.0,0.0001726,2]
[337792621,1726121465902,-955.55,0.0001726,2]
[337792622,1726121465913,-500.0,0.0001726,2]
[337792623,1726121465922,-1205.78,0.0001726,2]
[337792624,1726121465932,-151.0,0.0001726,2]
[337792625,1726121465942,-500.0,0.0001726,2]
[337792626,1726121465951,-500.0,0.0001726,2]
[337792627,1726121465961,-500.0,0.0001726,2]
[337792628,1726121465970,-697.1,0.0001726,2]
[337792629,1726121465981,-649.86,0.0001726,2]
[337792630,1726121465993,-481.34189202,0.0001726,2]
[337792631,1726121466002,-1365.01,0.0001726,2]
[337792632,1726121466011,-500.0,0.0001726,2]
[337792633,1726121466022,-1265.69,0.0001726,2]
[337792634,1726121466033,-500.0,0.0001726,2]
[337792635,1726121466044,-500.0,0.0001726,2]
[337792636,1726121466056,-516.87,0.0001726,2]
[337792637,1726121466065,-513.00258115,0.0001726,2]
[337792638,1726121466077,-500.0,0.0001726,2]
[337792639,1726121466086,-500.0,0.0001726,2]
[337792640,1726121466095,-538.76,0.0001726,2]
[337792641,1726121466105,-500.0,0.0001726,2]
[337792642,1726121466115,-500.0,0.0001726,2]
[337792643,1726121466125,-500.0,0.0001726,2]
[337792644,1726121466135,-500.0,0.0001726,2]
[337792645,1726121466145,-535.19,0.0001726,2]
[337792646,1726121466156,-1450.65,0.0001726,2]
[337792647,1726121466167,-1590.58,0.0001726,2]
[337792648,1726121466176,-500.0,0.0001726,2]
[337792649,1726121466185,-504.27,0.0001726,2]
[337792650,1726121466195,-500.0,0.0001726,2]
[337792651,1726121466203,-500.0,0.0001726,2]
[337792652,1726121466213,-500.0,0.0001726,2]
[337792653,1726121466221,-500.0,0.00017273,2]
[337792654,1726121466230,-606.49,0.00017534,2]
[337792655,1726121466239,-500.0,0.00017534,2]
[337792656,1726121466249,-500.0,0.00017534,2]
[337792657,1726121466258,-500.0,0.00017534,2]
[337792658,1726121466267,-151.0,0.00017534,2]
[337792659,1726121466276,-795.02,0.00017534,2]
[337792660,1726121466285,-500.0,0.00017534,2]
[337792661,1726121466295,-614.16,0.00017534,2]
[337792662,1726121466304,-808.63,0.00017534,2]
[337792663,1726121466313,-500.0,0.00017534,2]
[337792664,1726121466323,-603.88326322,0.00017534,2]
[337792665,1726121466334,-151.0,0.00017534,2]
[337792666,1726121466343,-1908.5,0.00017534,2]
[337792667,1726121466353,-452.70994671,0.00017534,2]
[337792668,1726121466363,-500.0,0.00017534,2]
[337792669,1726121466372,-500.0,0.00017534,2]
[337792670,1726121466380,-500.0,0.00017534,2]
[337792671,1726121466389,-500.0,0.00017534,2]
[337792672,1726121466398,-500.0,0.00017534,2]
[337792673,1726121466407,-500.0,0.00017534,2]
[337792674,1726121466417,-552.23,0.00017534,2]
[337792675,1726121466426,-500.0,0.00017534,2]
[337792676,1726121466435,-2120.97,0.00017534,2]
[337792677,1726121466446,-1044.98,0.00017534,2]
[337792678,1726121466456,-500.0,0.00017534,2]
[337792679,1726121466467,-725.95,0.00017534,2]
[337792680,1726121466477,-500.0,0.00017534,2]
[337792681,1726121466488,-500.0,0.00017534,2]
[337792682,1726121466498,-500.0,0.00017534,2]
[337792683,1726121466508,-500.0,0.00017534,2]
[337792684,1726121466518,-500.0,0.00017534,2]
[337792685,1726121466529,-500.0,0.00017534,2]
[337792686,1726121466539,-500.0,0.00017534,2]
[337792687,1726121466549,-1005.36,0.00017534,2]
[337792688,1726121466559,-278.21533834,0.00017534,2]
[337792689,1726121466570,-1298.29,0.00017534,2]
[337792690,1726121466581,-500.0,0.00017534,2]
[337792691,1726121466592,-500.0,0.00017534,2]
[337792692,1726121466603,-500.0,0.00017534,2]
[337792693,1726121466614,-500.0,0.00017534,2]
[337792694,1726121466625,-594.98,0.00017534,2]
[337792695,1726121466634,-500.0,0.00017534,2]
[337792696,1726121466646,-524.27,0.00017534,2]
[337792697,1726121466656,-500.0,0.00017534,2]
[337792698,1726121466666,-500.0,0.00017534,2]
[337792699,1726121466676,-702.73,0.00017534,2]
[337792700,1726121466685,-500.0,0.00017534,2]
[337792701,1726121466695,-556.93,0.00017534,2]
[337792702,1726121466706,-500.0,0.00017534,2]
[337792703,1726121466715,-500.0,0.00017534,2]
[337792704,1726121466727,-500.0,0.00017534,2]
[337792705,1726121466737,-1208.12,0.00017534,2]
[337792706,1726121466747,-500.0,0.00017534,2]
[337792707,1726121466759,-500.0,0.00017534,2]
[337792708,1726121466770,-517.99,0.00017534,2]
[337792709,1726121466779,-623.54368406,0.00017534,2]